bitfinex/quotes_SOLUSD_20220128
["timestamp","ask_amount","ask_price","bid_price","bid_amount"]
[1643380781939,111.9,88.598,88.482,6.0]
[1643380782139,6.0,88.591,88.472,20.5828502]
[1643380782541,6.0,88.591,88.482,6.0]
[1643380782740,44.33247292,88.603,88.49,6.0]
[1643380782940,3.07109749,88.633,88.483,114.31542587]
[1643380783139,120.81616402,88.636,88.493,6.0]
[1643380783340,112.1,88.635,88.494,0.25]
[1643380783541,112.1,88.635,88.483,0.25]
[1643380783542,111.9,88.594,88.472,20.5828502]
[1643380783744,0.31360227,88.581,88.472,20.5828502]
[1643380784241,19.58105544,88.581,88.472,20.5828502]
[1643380784642,16.954,88.58,88.472,20.5828502]
[1643380784845,16.954,88.58,88.473,0.25]
[1643380785043,11.96024125,88.579,88.472,20.5828502]
[1643380785244,11.96024125,88.579,88.473,0.25]
[1643380785543,6.0,88.569,88.472,20.5828502]
[1643380786644,112.1,88.57,88.472,20.5828502]
[1643380787044,16.961,88.55,88.472,20.5828502]
[1643380787447,35.52513061,88.549,88.472,20.5828502]
[1643380787745,112.1,88.548,88.472,20.5828502]
[1643380787945,112.1,88.548,88.44,16.959]
[1643380788143,0.3215225,88.536,88.418,3.11937615]
[1643380788345,0.3215225,88.536,88.407,46.4377]
[1643380788544,112.1,88.534,88.407,46.4377]
[1643380788745,22.5551,88.533,88.377,3.11937615]
[1643380788942,22.5551,88.533,88.34,13.58]
[1643380788943,20.38767613,88.523,88.378,43.4037819]
[1643380789145,76.7178,88.522,88.379,10.8623]
[1643380789342,76.7178,88.522,88.378,43.4037819]
[1643380789543,23.0567,88.521,88.378,43.4037819]
[1643380789745,42.63775544,88.521,88.378,43.4037819]
[1643380789943,2.95669142,88.52,88.378,43.4037819]
[1643380790146,36.55105544,88.52,88.378,43.4037819]
[1643380790343,128.72436402,88.519,88.378,43.4037819]
[1643380790843,24.1865,88.518,88.379,0.25]
[1643380791043,112.1,88.517,88.379,0.25]
[1643380791444,112.1,88.517,88.379,23.4709]
[1643380791645,16.972,88.51,88.38,16.971]
[1643380791844,35.52513061,88.509,88.381,112.35]
[1643380792043,35.52513061,88.509,88.391,6.0]
[1643380792245,112.1,88.508,88.392,22.98775544]
[1643380792443,112.1,88.508,88.392,20.11341136]
[1643380792647,16.972,88.5,88.392,20.11341136]
[1643380793445,16.972,88.5,88.393,3.12389273]
[1643380793848,16.972,88.5,88.394,0.25]
[1643380794244,76.7178,88.522,88.394,0.25]
[1643380794447,76.7178,88.522,88.395,10.72071511]
[1643380794646,76.7178,88.522,88.405,6.0]
[1643380794847,76.7178,88.522,88.406,0.25]
[1643380795045,76.7178,88.522,88.406,37.34960593]
[1643380795249,35.08527719,88.521,88.407,57.24885381]
[1643380795450,35.08527719,88.521,88.408,3.1243568]
[1643380795651,35.08527719,88.521,88.418,6.0]
[1643380795850,35.08527719,88.521,88.421,19.86341136]
[1643380796048,35.08527719,88.521,88.431,6.0]
[1643380796249,78.3118,88.569,88.432,0.25]
[1643380796449,78.3118,88.569,88.432,2.47337731]
[1643380796650,6.0,88.559,88.432,8.47337731]
[1643380796949,16.958,88.56,88.46,16.956]
[1643380797149,24.7961,88.589,88.461,43.4037819]
[1643380797350,24.972,88.613,88.462,112.35]
[1643380797549,17.3319,88.635,88.472,6.0]
[1643380797752,72.2244,88.63,88.472,6.0]
[1643380797949,72.2244,88.63,88.48,13.58]
[1643380798151,48.81441962,88.629,88.491,19.86341136]
[1643380798349,48.81441962,88.629,88.531,37.42080633]
[1643380798649,48.81441962,88.629,88.541,6.0]
[1643380798849,48.81441962,88.629,88.542,0.25]
[1643380799048,48.81441962,88.629,88.541,6.0]
[1643380799651,16.947,88.62,88.541,6.0]
[1643380799851,16.947,88.62,88.492,47.6731]
[1643380800052,6.0,88.61,88.502,6.0]
[1643380800452,16.62436402,88.619,88.502,6.0]
[1643380800651,48.81441962,88.629,88.503,2.48846794]
[1643380800853,48.81441962,88.629,88.532,26.07023145]
[1643380801354,35.62505972,88.628,88.532,26.07023145]
[1643380801753,35.62505972,88.627,88.532,26.07023145]
[1643380801954,16.947,88.62,88.532,26.07023145]
[1643380804254,19.90369142,88.62,88.493,23.2947]
[1643380804454,19.90369142,88.62,88.45,13.58]
[1643380804455,36.52805544,88.62,88.45,13.58]
[1643380804755,36.52805544,88.62,88.39,3.0]
[1643380804756,10.18574271,88.619,88.472,6.0]
[1643380805155,46.29230972,88.618,88.473,42.99368193]
[1643380805459,0.31482587,88.593,88.473,42.99368193]
[1643380805655,7.09838712,88.609,88.473,42.99368193]
[1643380805955,69.02600243,88.617,88.473,42.99368193]
[1643380805956,16.957,88.57,88.473,42.99368193]
[1643380806156,14.86195147,88.569,88.473,42.99368193]
[1643380806757,2.95669142,88.568,88.473,42.99368193]
[1643380807357,16.959,88.56,88.473,42.99368193]
[1643380807556,6.0,88.55,88.473,42.99368193]
[1643380807757,41.05085527,88.549,88.473,42.99368193]
[1643380809158,112.1,88.548,88.473,42.99368193]
[1643380811482,112.1,88.548,88.444,23.1377]
[1643380811682,112.1,88.548,88.445,0.25]
[1643380811883,16.963,88.54,88.444,23.1377]
[1643380812083,16.963,88.54,88.41,16.963]
[1643380812283,49.77909142,88.539,88.398,3.11937615]
[1643380812482,49.77909142,88.539,88.392,112.1]
[1643380812483,49.3321224,88.539,88.409,45.7315167]
[1643380812684,46.37543098,88.539,88.409,45.7315167]
[1643380812885,112.1,88.538,88.419,6.0]
[1643380813283,2.95669142,88.537,88.419,6.0]
[1643380813483,16.969,88.53,88.419,6.0]
[1643380813683,11.88055427,88.529,88.419,6.0]
[1643380814083,14.83724569,88.529,88.419,6.0]
[1643380814482,112.1,88.528,88.42,0.25]
[1643380815084,16.969,88.52,88.42,0.25]
[1643380815286,11.88055427,88.529,88.42,0.25]
[1643380815487,46.37543098,88.539,88.421,1.55938776]
[1643380815689,17.1253,88.54,88.428,1.55938776]
[1643380815886,17.1253,88.54,88.427,112.1]
[1643380815887,17.1253,88.54,88.435,1.55938776]
[1643380816286,17.1253,88.54,88.436,0.25]
[1643380816486,48.59404448,88.539,88.437,1.55938776]
[1643380816688,1.53327899,88.592,88.437,8.23846794]
[1643380816887,92.4248,88.606,88.437,8.23846794]
[1643380816888,56.53,88.58,88.438,0.25]
[1643380817190,56.53,88.58,88.447,118.1]
[1643380817387,56.53,88.58,88.448,0.25]
[1643380817587,56.53,88.58,88.454,6.0]
[1643380817787,56.53,88.58,88.458,35.5806877]
[1643380817991,17.2108,88.583,88.458,35.5806877]
[1643380818189,17.2108,88.583,88.468,6.0]
[1643380818388,17.2108,88.583,88.469,0.25]
[1643380818590,17.2108,88.583,88.469,6.25]
[1643380818889,68.1718,88.606,88.469,6.25]
[1643380818890,47.05159242,88.585,88.469,6.25]
[1643380819089,47.05159242,88.585,88.469,0.25]
[1643380819291,47.05159242,88.585,88.48,30.66790276]
[1643380819690,47.05159242,88.585,88.49,6.0]
[1643380819891,47.05159242,88.585,88.491,0.25]
[1643380821092,47.05159242,88.585,88.49,6.0]
[1643380821291,47.05159242,88.585,88.491,0.25]
[1643380822692,68.1718,88.606,88.5,16.948]
[1643380822894,1.53327899,88.628,88.501,0.25]
[1643380823196,7.53238307,88.728,88.501,0.25]
[1643380823197,2.95669142,88.634,88.501,6.0]
[1643380823394,2.95669142,88.634,88.502,24.0256]
[1643380823594,2.95669142,88.634,88.512,6.0]
[1643380823795,39.23221091,88.63,88.513,0.25]
[1643380823995,56.17821091,88.63,88.52,16.945]
[1643380824195,59.13490233,88.63,88.521,30.66790276]
[1643380824394,59.13490233,88.63,88.53,6.0]
[1643380824595,59.13490233,88.63,88.531,6.0]
[1643380825398,59.13490233,88.63,88.532,0.25]
[1643380825702,2.95669142,88.646,88.532,0.25]
[1643380825897,1.53327899,88.664,88.532,112.35]
[1643380826098,1.53327899,88.665,88.542,6.0]
[1643380826299,1.53327899,88.665,88.55,13.58]
[1643380826499,1.53327899,88.686,88.55,13.58]
[1643380826699,1.53327899,88.7,88.6,16.929]
[1643380826900,1.53327899,88.7,88.61,13.58]
[1643380827100,11.61168476,88.74,88.621,112.1]
[1643380827299,0.1,88.758,88.63,13.58]
[1643380827501,3.16493654,88.781,88.631,6.0]
[1643380827699,10.66725,88.78,88.64,6.0]
[1643380827901,0.1,88.779,88.642,112.1]
[1643380828100,10.66725,88.778,88.652,6.0]
[1643380828302,0.1,88.777,88.653,0.25]
[1643380828501,6.34640689,88.777,88.66,13.58]
[1643380828705,6.24640689,88.777,88.661,35.5806877]
[1643380828900,3.07109749,88.834,88.671,112.1]
[1643380829099,3.06874709,88.834,88.68,13.58]
[1643380829299,3.06874709,88.834,88.681,0.25]
[1643380829506,3.06874709,88.834,88.69,6.0]
[1643380829702,16.66906771,88.824,88.691,29.13462377]
[1643380829902,0.1,88.823,88.691,29.13462377]
[1643380830106,13.76958958,88.813,88.701,6.0]
[1643380830301,0.1,88.812,88.701,6.0]
[1643380830702,0.1,88.812,88.711,35.5806877]
[1643380831304,0.1,88.812,88.712,0.25]
[1643380831508,0.1,88.812,88.721,6.0]
[1643380831705,0.04470369,88.824,88.721,6.0]
[1643380831906,0.04470369,88.824,88.722,2.49638826]
[1643380832105,0.04470369,88.824,88.732,6.0]
[1643380832305,0.04470369,88.824,88.733,0.25]
[1643380832507,0.04470369,88.824,88.733,37.38101203]
[1643380832706,0.04470369,88.824,88.733,31.38101203]
[1643380832909,2.95669142,88.823,88.69,13.58]
[1643380833608,0.04470369,88.824,88.69,15.82638826]
[1643380833806,0.04470369,88.824,88.7,6.0]
[1643380834106,6.0,88.822,88.701,34.78561786]
[1643380834307,6.0,88.822,88.701,35.03561786]
[1643380834506,0.04470369,88.824,88.701,37.28200612]
[1643380834707,0.04470369,88.824,88.702,20.42356844]
[1643380834909,0.04470369,88.824,88.703,0.25]
[1643380835209,0.04470369,88.824,88.703,20.67356844]
[1643380835410,0.04470369,88.824,88.711,6.0]
[1643380835609,0.04470369,88.824,88.72,6.0]
[1643380835910,0.04470369,88.824,88.73,13.58]
[1643380836111,0.04470369,88.824,88.74,6.0]
[1643380836309,0.04470369,88.824,88.781,112.1]
[1643380836509,0.04470369,88.824,88.791,6.0]
[1643380836908,0.1,88.925,88.792,0.25]
[1643380837110,0.1,88.925,88.794,6.0]
[1643380837408,47.02936992,88.925,88.795,35.03561786]
[1643380837610,0.1,88.924,88.805,6.0]
[1643380837807,44.02936992,88.925,88.806,0.25]
[1643380838208,44.02936992,88.925,88.806,0.15030458]
[1643380838811,2.95669142,88.924,88.806,0.15030458]
[1643380839008,44.02936992,88.925,88.806,0.15030458]
[1643380839009,44.02936992,88.925,88.81,16.888]
[1643380839209,44.02936992,88.925,88.811,32.82969361]
[1643380839409,44.02936992,88.925,88.811,33.07969361]
[1643380839809,2.95669142,88.924,88.811,33.07969361]
[1643380840111,2.95669142,88.924,88.811,32.82969361]
[1643380840311,6.0,88.914,88.811,32.82969361]
[1643380840708,2.95669142,88.913,88.811,32.82969361]
[1643380841512,2.95669142,88.913,88.812,0.25]
[1643380841811,2.95669142,88.913,88.811,32.82969361]
[1643380842614,16.892,88.92,88.812,0.25]
[1643380842813,44.02936992,88.925,88.812,0.25]
[1643380843213,2.95669142,88.919,88.811,32.82969361]
[1643380844014,44.02936992,88.925,88.812,0.25]
[1643380844812,44.02936992,88.925,88.811,32.82969361]
[1643380844813,2.95669142,88.924,88.811,32.82969361]
[1643380845014,6.0,88.914,88.811,32.82969361]
[1643380845414,2.95669142,88.913,88.811,32.82969361]
[1643380846421,6.0,88.914,88.811,32.82969361]
[1643380847014,44.02936992,88.925,88.811,32.82969361]
[1643380847216,7.53531861,88.903,88.811,32.82969361]
[1643380847614,16.89,88.93,88.811,32.82969361]
[1643380847814,3.07109749,89.002,88.812,0.25]
[1643380847815,0.1,88.96,88.812,0.25]
[1643380848016,6.0,88.928,88.812,0.25]
[1643380848419,6.0,88.928,88.811,32.82969361]
[1643380848716,16.893,88.91,88.811,32.82969361]
[1643380848918,15.32356271,88.909,88.811,32.82969361]
[1643380849721,15.32356271,88.909,88.812,0.25]
[1643380850520,6.0,88.899,88.812,0.25]
[1643380850943,2.95669142,88.941,88.812,0.25]
[1643380851143,6.0,88.928,88.82,16.887]
[1643380851343,6.0,88.928,88.811,32.82969361]
[1643380851546,0.30867347,88.926,88.811,32.82969361]
[1643380851743,48.07404069,88.926,88.811,32.82969361]
[1643380851946,2.95669142,88.925,88.811,32.82969361]
[1643380852343,16.892,88.92,88.811,32.82969361]
[1643380852744,2.95669142,88.919,88.811,32.82969361]
[1643380853043,47.76536722,88.926,88.811,32.82969361]
[1643380854245,47.76536722,88.926,88.812,0.25]
[1643380854445,2.95669142,88.925,88.811,32.82969361]
[1643380854646,2.45669142,88.925,88.811,32.82969361]
[1643380855849,2.45669142,88.925,88.812,0.25]
[1643380856047,16.891,88.92,88.812,0.25]
[1643380856349,47.76536722,88.926,88.811,32.82969361]
[1643380856649,3.79932131,88.909,88.811,32.82969361]
[1643380856846,3.07109749,88.902,88.702,3.36937615]
[1643380857047,3.07109749,88.884,88.721,6.0]
[1643380857346,3.07109749,88.884,88.712,81.86373]
[1643380857347,3.07109749,88.883,88.73,13.58]
[1643380857547,3.07109749,88.884,88.73,19.58]
[1643380857748,3.07109749,88.882,88.732,36.17706711]
[1643380857947,16.898,88.88,88.77,16.897]
[1643380858146,16.898,88.88,88.75,56.317]
[1643380858147,3.07295394,88.879,88.771,31.43824436]
[1643380858757,3.07295394,88.88,88.771,31.43824436]
[1643380858961,3.07295394,88.88,88.78,16.895]
[1643380859159,3.07109749,88.897,88.781,6.0]
[1643380859357,2.95669142,88.894,88.772,28.50570963]
[1643380859557,6.0,88.884,88.771,31.43824436]
[1643380859759,3.07109749,88.882,88.771,31.43824436]
[1643380860160,16.898,88.88,88.772,0.25]
[1643380860358,112.1,88.879,88.771,31.43824436]
[1643380860659,3.07368347,88.878,88.771,31.43824436]
[1643380861158,3.07368347,88.877,88.771,31.43824436]
[1643380861364,16.9,88.87,88.771,31.43824436]
[1643380861665,3.07368347,88.869,88.7,13.58]
[1643380861862,3.07109749,88.854,88.7,13.58]
[1643380862062,72.296,88.853,88.713,112.1]
[1643380862262,72.296,88.853,88.713,123.20780723]
[1643380862464,12.29251163,88.852,88.714,44.9783156]
[1643380862667,9.21882816,88.852,88.714,56.08612283]
[1643380862864,3.07109749,88.846,88.714,56.08612283]
[1643380863064,16.907,88.84,88.715,112.35]
[1643380863266,41.44750175,88.833,88.715,0.25]
[1643380863564,6.15202428,88.832,88.715,0.25]
[1643380863764,3.07109749,88.831,88.715,0.25]
[1643380863964,3.08092679,88.832,88.715,0.25]
[1643380864169,27.89692679,88.832,88.715,0.25]
[1643380864366,3.08092679,88.831,88.715,0.25]
[1643380864566,16.908,88.83,88.714,44.9783156]
[1643380864966,3.07109749,88.828,88.714,44.9783156]
[1643380865266,6.15202428,88.828,88.714,44.9783156]
[1643380865466,6.15202428,88.828,88.714,62.376218]
[1643380865667,24.816,88.832,88.728,22.63699587]
[1643380865865,24.816,88.832,88.729,112.1]
[1643380866066,24.816,88.832,88.729,112.35]
[1643380866467,3.07109749,88.854,88.73,17.3979024]
[1643380866668,3.07109749,88.856,88.731,112.1]
[1643380866867,3.07109749,88.856,88.731,112.35]
[1643380867067,3.07109749,88.857,88.751,37.57294033]
[1643380867266,3.07109749,88.859,88.751,37.57294033]
[1643380867466,3.07109749,88.855,88.751,37.57294033]
[1643380867875,24.3289,88.852,88.751,37.57294033]
[1643380868275,3.07109749,88.86,88.76,16.898]
[1643380868478,3.07109749,88.88,88.761,6.0]
[1643380868678,3.07109749,88.88,88.77,6.0]
[1643380868878,3.078448,88.88,88.771,0.25]
[1643380869076,3.07109749,88.891,88.772,6.0]
[1643380869277,3.07109749,88.891,88.774,112.1]
[1643380869479,3.07109749,88.904,88.78,16.895]
[1643380869709,3.07924972,88.919,88.785,112.1]
[1643380869710,3.07109749,88.907,88.785,112.1]
[1643380869909,3.07109749,88.916,88.79,6.0]
[1643380870111,3.07109749,88.917,88.8,13.58]
[1643380870309,47.09503689,88.916,88.801,37.82294033]
[1643380870609,47.09503689,88.916,88.82,16.885]
[1643380870810,3.07924972,88.915,88.821,30.29237114]
[1643380871410,3.07924972,88.915,88.822,2.24966327]
[1643380871611,3.07109749,88.933,88.832,6.0]
[1643380871811,48.2985,88.951,88.86,16.878]
[1643380871812,3.07109749,88.936,88.86,16.878]
[1643380872014,3.07109749,88.943,88.87,6.0]
[1643380872210,3.07109749,88.943,88.87,19.05]
[1643380872415,36.35983321,88.942,88.871,37.57294033]
[1643380872612,36.35983321,88.942,88.881,6.0]
[1643380872813,3.08103561,88.941,88.871,37.57294033]
[1643380873117,36.35983321,88.942,88.871,37.57294033]
[1643380873613,3.07761062,88.941,88.871,37.57294033]
[1643380873815,3.07761062,88.941,88.75,3.11937615]
[1643380874013,6.0,88.931,88.84,6.0]
[1643380874217,6.0,88.931,88.8,13.58]
[1643380874416,3.07761062,88.93,88.801,10.81068]
[1643380874620,3.07109749,88.929,88.811,6.0]
[1643380874915,18.28246594,88.928,88.812,41.57138258]
[1643380875115,3.07761062,88.927,88.812,41.57138258]
[1643380875715,16.891,88.92,88.812,41.57138258]
[1643380876117,6.03176618,88.919,88.812,41.57138258]
[1643380876316,3.07507476,88.918,88.812,41.57138258]
[1643380876516,3.07109749,88.914,88.812,41.57138258]
[1643380876717,16.893,88.91,88.78,17.40603626]
[1643380876918,3.07109749,88.906,88.77,16.896]
[1643380877121,3.07109749,88.906,88.78,6.0]
[1643380877419,3.07109749,88.905,88.78,6.0]
[1643380877619,15.20485532,88.895,88.781,49.55413586]
[1643380877819,15.20485532,88.895,88.79,16.893]
[1643380877820,3.07507476,88.894,88.79,16.893]
[1643380878020,6.0,88.884,88.781,66.96017212]
[1643380878218,6.0,88.884,88.781,49.55413586]
[1643380878421,6.0,88.884,88.791,6.0]
[1643380878821,15.20485532,88.895,88.792,0.25]
[1643380879021,6.0,88.885,88.792,112.35]
[1643380879223,6.0,88.885,88.792,0.25]
[1643380879631,6.0,88.885,88.791,6.0]
[1643380880122,6.0,88.885,88.781,49.55413586]
[1643380880624,3.07109749,88.893,88.781,49.55413586]
[1643380880856,3.0758363,88.894,88.782,19.90569942]
[1643380881125,3.0758363,88.894,88.792,6.0]
[1643380881326,15.20485532,88.895,88.793,0.25]
[1643380881524,3.07109749,88.916,88.801,18.06117561]
[1643380881725,3.07109749,88.918,88.811,112.1]
[1643380881924,3.07109749,88.922,88.812,0.25]
[1643380882125,3.07109749,88.925,88.812,0.25]
[1643380882327,3.07109749,88.924,88.813,17.40603626]
[1643380882525,3.07109749,88.923,88.823,6.0]
[1643380882724,3.07109749,88.923,88.824,39.94650917]
[1643380882925,6.14757282,88.923,88.824,40.19650917]
[1643380883126,3.07647533,88.923,88.824,40.19650917]
[1643380883325,3.07647533,88.923,88.834,6.0]
[1643380883727,3.07647533,88.923,88.835,0.25]
[1643380883925,3.07647533,88.923,88.824,39.94650917]
[1643380884126,3.07109749,88.92,88.824,39.94650917]
[1643380884327,112.1,88.912,88.825,0.25]
[1643380884525,3.07647533,88.911,88.825,0.25]
[1643380884726,2.64944525,88.91,88.825,0.25]
[1643380885730,3.07109749,88.918,88.825,0.25]
[1643380885930,3.07109749,88.923,88.834,6.0]
[1643380886130,3.07109749,88.931,88.836,6.0]
[1643380886330,3.07149355,88.936,88.837,0.25]
[1643380886633,3.07149355,88.936,88.837,112.35]
[1643380886831,3.07109749,88.944,88.841,112.1]
[1643380887036,3.07109749,88.949,88.851,6.0]
[1643380887237,3.07109749,88.955,88.851,6.0]
[1643380887438,3.07326169,88.951,88.852,112.35]
[1643380887635,9.49914114,88.951,88.852,118.35]
[1643380887835,44.25539983,88.95,88.853,39.94650917]
[1643380888037,6.42587945,88.95,88.86,16.879]
[1643380888458,6.42587945,88.951,88.861,2.50532957]
[1643380888658,6.42587945,88.951,88.87,6.0]
[1643380888863,0.1,88.965,88.871,6.25]
[1643380889058,48.82364266,88.965,88.872,27.6688023]
[1643380889260,6.53313908,88.964,88.872,27.9188023]
[1643380889461,6.43313908,88.964,88.883,112.1]
[1643380889760,3.07109749,88.994,88.883,112.1]
[1643380889961,3.07109749,88.994,88.893,6.0]
[1643380890159,48.49156156,88.992,88.895,39.94650917]
[1643380890358,16.877,88.99,88.895,39.94650917]
[1643380890560,3.07109749,88.988,88.905,6.0]
[1643380890761,3.07109749,88.987,88.905,6.0]
[1643380890960,3.07109749,88.985,88.905,6.0]
[1643380891160,3.07109749,88.984,88.85,69.837]
[1643380891365,16.878,88.98,88.851,0.25]
[1643380891561,6.0,88.974,88.851,0.25]
[1643380891761,3.07237291,88.973,88.851,0.25]
[1643380891967,3.07109749,88.971,88.851,0.25]
[1643380892177,111.9,88.964,88.831,6.0]
[1643380892366,3.17237291,88.963,88.831,6.0]
[1643380892566,3.07109749,88.954,88.807,112.1]
[1643380892862,16.892,88.92,88.807,112.1]
[1643380893063,48.1362,88.939,88.807,112.1]
[1643380893364,42.08459906,88.938,88.822,47.07742117]
[1643380893864,16.889,88.93,88.822,47.07742117]
[1643380894465,42.08459906,88.938,88.822,47.07742117]
[1643380894868,16.889,88.93,88.822,47.07742117]
[1643380895266,16.889,88.93,88.823,0.25]
[1643380895467,9.48888536,88.929,88.823,0.25]
[1643380895667,112.1,88.928,88.823,0.25]
[1643380895867,6.41656581,88.928,88.823,0.25]
[1643380896067,3.07236658,88.927,88.823,0.25]
[1643380896668,9.48893239,88.926,88.823,0.25]
[1643380897068,12.56002988,88.925,88.83,16.885]
[1643380897268,9.48008947,88.924,88.831,0.25]
[1643380897469,12.55245605,88.924,88.831,0.25]
[1643380897672,3.07236658,88.923,88.831,0.25]
[1643380897870,9.48008947,88.924,88.831,0.25]
[1643380898270,9.50122589,88.923,88.831,0.25]
[1643380898470,3.08088049,88.922,88.823,0.25]
[1643380898670,9.50122589,88.922,88.823,0.25]
[1643380898871,6.15197798,88.921,88.823,0.25]
[1643380899072,9.50122589,88.921,88.823,0.25]
[1643380899271,3.08088049,88.92,88.823,0.25]
[1643380899471,12.57232338,88.92,88.823,0.25]
[1643380899872,3.08088049,88.919,88.83,16.885]
[1643380900073,3.08088049,88.919,88.832,6.0]
[1643380900379,9.48008947,88.924,88.833,0.25]
[1643380900572,9.48008947,88.924,88.832,8.26329421]
[1643380900776,12.56781064,88.923,88.822,47.07742117]
[1643380900973,3.07109749,88.919,88.822,47.07742117]
[1643380901172,6.0,88.913,88.822,47.07742117]
[1643380901375,3.07904732,88.912,88.822,47.07742117]
[1643380901572,16.892,88.91,88.8,16.89]
[1643380901777,112.1,88.909,88.78,6.0]
[1643380901974,3.07109749,88.906,88.78,6.0]
[1643380902174,3.07109749,88.905,88.78,6.0]
[1643380902375,9.4732546,88.905,88.78,6.0]
[1643380902578,47.47232887,88.904,88.782,112.1]
[1643380902781,3.07109749,88.918,88.783,0.25]
[1643380902979,72.922,88.983,88.783,0.25]
[1643380902980,3.07109749,88.934,88.792,6.0]
[1643380903178,3.07109749,88.934,88.8,13.58]
[1643380903376,3.07109749,88.948,88.801,0.25]
[1643380903577,3.07109749,88.946,88.81,6.0]
[1643380903777,0.1,88.96,88.821,112.1]
[1643380903778,3.07109749,88.945,88.821,112.1]
[1643380903983,46.11532019,88.947,88.822,53.33507062]
[1643380904277,3.08031007,88.946,88.831,6.0]
[1643380904478,3.07109749,88.957,88.832,6.0]
[1643380904677,3.07109749,88.957,88.833,6.0]
[1643380904879,0.1,88.96,88.833,6.0]
[1643380904880,0.1,88.96,88.851,112.1]
[1643380905078,0.1,88.977,88.861,6.0]
[1643380905278,0.1,88.984,88.862,0.25]
[1643380905482,35.47010364,88.96,88.871,25.08837085]
[1643380905679,35.57010364,88.96,88.872,112.1]
[1643380905882,35.57010364,88.96,88.881,6.0]
[1643380906078,35.57010364,88.96,88.891,112.1]
[1643380906281,35.57010364,88.96,88.892,39.25834863]
[1643380906479,35.57010364,88.96,88.901,6.0]
[1643380906681,35.57010364,88.96,88.902,6.0]
[1643380907108,35.57010364,88.96,88.89,16.873]
[1643380907382,35.57010364,88.96,88.84,69.838]
[1643380907581,82.33350364,88.96,88.857,112.1]
[1643380907983,82.33350364,88.96,88.867,6.0]
[1643380908183,82.33350364,88.96,88.868,46.61427023]
[1643380908584,82.33350364,88.96,88.88,16.876]
[1643380908782,82.33350364,88.96,88.881,0.25]
[1643380909184,82.33350364,88.96,88.878,6.0]
[1643380909383,35.57010364,88.96,88.878,6.0]
[1643380909884,35.57010364,88.96,88.879,0.25]
[1643380910888,35.57010364,88.96,88.878,6.0]
[1643380911185,3.06782087,88.959,88.878,6.0]
[1643380911385,0.1,88.96,88.878,6.0]
[1643380911586,0.1,88.973,88.879,2.26329421]
[1643380911785,0.1,88.982,88.879,142.78353656]
[1643380911984,0.1,88.996,88.889,6.0]
[1643380912186,0.1,88.996,88.91,16.87]
[1643380912385,44.10241114,88.969,88.911,21.25104124]
[1643380912585,0.1,88.968,88.911,21.25104124]
[1643380912785,3.17109749,88.996,88.911,21.25104124]
[1643380912987,3.16686501,88.996,88.912,2.26329421]
[1643380913188,3.07109749,89.01,88.93,16.866]
[1643380913385,3.07109749,89.014,88.931,0.25]
[1643380913585,44.65497446,89.013,88.931,41.64442774]
[1643380913787,3.07109749,89.009,88.931,41.64442774]
[1643380913984,3.07109749,89.002,88.931,41.64442774]
[1643380914188,3.07109749,89.003,88.932,0.25]
[1643380914608,3.07109749,89.005,88.932,0.25]
[1643380914785,3.07109749,89.004,88.932,0.25]
[1643380914985,3.07109749,89.0,88.932,0.25]
[1643380915190,6.90971407,88.999,88.932,0.25]
[1643380915390,3.06723859,88.998,88.932,0.25]
[1643380915795,3.06723859,88.998,88.941,6.0]
[1643380915992,7.00971407,88.999,88.941,6.0]
[1643380916193,6.90971407,88.999,88.942,0.25]
[1643380916494,3.07083352,88.998,88.942,0.25]
[1643380917296,3.07083352,88.998,88.93,16.866]
[1643380917494,3.07083352,88.998,88.907,112.1]
[1643380917695,3.17083352,88.998,88.911,6.0]